fUSD/lending_fUSD_20240223
["ID","MTS","AMOUNT","RATE_DAILY","PERIOD"]
[314978221,1708711850449,-450.59250522,0.00027868,3]
[314978222,1708711850458,-5531.308657,0.000279,2]
[314978223,1708711850467,-500.0,0.00027945,2]
[314978224,1708711850476,-500.0,0.00027945,2]
[314978225,1708711850485,-166.08801942,0.00027945,2]
[314978226,1708711850495,-500.0,0.00027945,2]
[314978227,1708711850505,-500.0,0.00027945,2]
[314978228,1708711850513,-500.0,0.00027945,2]
[314978229,1708711850522,-500.0,0.00027945,2]
[314978230,1708711850531,-500.0,0.00027945,2]
[314978231,1708711850540,-500.0,0.00027945,2]
[314978232,1708711850551,-500.0,0.00027945,2]
[314978233,1708711850560,-500.0,0.00027945,2]
[314978234,1708711850569,-635.17,0.00027945,2]
[314978235,1708711850578,-500.0,0.00027945,2]
[314978236,1708711850587,-500.0,0.00027945,2]
[314978237,1708711850597,-500.0,0.00027945,2]
[314978238,1708711850606,-500.0,0.00027945,2]
[314978239,1708711850616,-500.0,0.00027945,2]
[314978240,1708711850626,-573.0,0.00027945,2]
[314978241,1708711850636,-500.0,0.00027945,2]
[314978242,1708711850646,-500.0,0.00027945,2]
[314978243,1708711850655,-701.77,0.00027945,2]
[314978244,1708711850666,-500.0,0.00027945,2]
[314978245,1708711850675,-500.0,0.00027945,2]
[314978246,1708711850684,-500.0,0.00027945,2]
[314978247,1708711850693,-160.56650028,0.00027945,2]
[314978248,1708711850702,-572.43,0.00027945,2]
[314978249,1708711850711,-500.0,0.00027945,2]
[314978250,1708711850721,-500.0,0.00027945,2]
[314978251,1708711850730,-500.0,0.00027945,2]
[314978252,1708711850746,-627.02316188,0.00027945,2]
[314978253,1708711850755,-500.0,0.00027945,2]
[314978254,1708711850766,-177.74,0.0002799,2]
[314978255,1708711850776,-155.14487319,0.00028014,2]
[314978256,1708711850785,-534.91133894,0.00028022,2]
[314978257,1708711850795,-154.98329938,0.00028028,2]
[314978258,1708711850804,-156.57354396,0.00028033,2]
[314978259,1708711850816,-153.31768893,0.00028045,2]
[314978260,1708711850826,-159.69428409,0.00028054,2]
[314978261,1708711850835,-167.02514082,0.00028066,2]
[314978262,1708711850844,-152.6064863,0.00028068,2]
[314978263,1708711850853,-1027.1629468,0.00028074,2]
[314978264,1708711850862,-155.76031539,0.0002808,2]
[314978265,1708711850871,-172.12,0.00028082,2]
[314978266,1708711850881,-500.0,0.00028082,2]
[314978267,1708711850890,-500.0,0.00028082,2]
[314978268,1708711850899,-500.0,0.00028082,2]
[314978269,1708711850908,-500.0,0.00028082,2]
[314978270,1708711850917,-500.0,0.00028082,2]
[314978271,1708711850926,-500.0,0.00028082,2]
[314978272,1708711850936,-500.0,0.00028082,2]
[314978273,1708711850945,-500.0,0.00028082,2]
[314978274,1708711850954,-500.0,0.00028082,2]
[314978275,1708711850963,-635.17,0.00028082,2]
[314978276,1708711850972,-500.0,0.00028082,2]
[314978277,1708711850982,-500.0,0.00028082,2]
[314978278,1708711850992,-500.0,0.00028082,2]
[314978279,1708711851002,-500.0,0.00028082,2]
[314978280,1708711851012,-500.0,0.00028082,2]
[314978281,1708711851022,-573.0,0.00028082,2]
[314978282,1708711851031,-500.0,0.00028082,2]
[314978283,1708711851040,-500.0,0.00028082,2]
[314978284,1708711851049,-701.77,0.00028082,2]
[314978285,1708711851058,-500.0,0.00028082,2]
[314978286,1708711851067,-500.0,0.00028082,2]
[314978287,1708711851076,-500.0,0.00028082,2]
[314978288,1708711851086,-572.43,0.00028082,2]
[314978289,1708711851095,-500.0,0.00028082,2]
[314978290,1708711851105,-500.0,0.00028082,2]
[314978291,1708711851114,-500.0,0.00028082,2]
[314978292,1708711851123,-617.74735537,0.00028082,2]
[314978293,1708711851133,-153.50007692,0.00028096,2]
[314978294,1708711851142,-403.18,0.00028098,2]
[314978295,1708711851151,-534.91133894,0.00028099,2]
[314978296,1708711851161,-170.35022239,0.00028119,14]
[314978297,1708711851170,-1404.43,0.00028132,2]
[314978298,1708711851180,-1404.43,0.00028132,2]
[314978299,1708711851190,-1404.43,0.00028132,2]
[314978300,1708711851199,-1404.43,0.00028132,2]
[314978301,1708711851209,-1404.43,0.00028132,2]
[314978302,1708711851218,-1404.43,0.00028132,2]
[314978303,1708711851228,-1404.43,0.00028132,2]
[314978304,1708711851238,-1404.43,0.00028132,2]
[314978305,1708711851249,-1404.43,0.00028132,2]
[314978306,1708711851259,-1404.43,0.00028132,2]
[314978307,1708711851268,-1404.43,0.00028132,2]
[314978308,1708711851278,-1404.43,0.00028132,2]
[314978309,1708711851287,-1404.43,0.00028132,2]
[314978310,1708711851297,-1404.43,0.00028132,2]
[314978311,1708711851307,-1404.43,0.00028132,2]
[314978312,1708711851317,-1404.51535452,0.00028132,2]
[314978313,1708711851327,-154.98329938,0.0002814,2]
[314978314,1708711851337,-236.0,0.00028141,2]
[314978315,1708711851347,-154.02083881,0.00028151,2]
[314978316,1708711851357,-154.02083881,0.00028161,2]
[314978317,1708711851366,-2445.44969023,0.00028187,2]
[314978318,1708711851376,-170.01694919,0.0002819,2]
[314978319,1708711851385,-861649.97713586,0.00028205,4]
[314978320,1708711851695,-684201.11418554,0.00028205,4]
[314978321,1708711851708,-162304.550507,0.00028205,4]
[314978322,1708711851718,-1135.55235293,0.00028205,2]
[314978323,1708711851732,-215.17130253,0.00028209,2]
[314978324,1708711851742,-500.0,0.00028219,2]
[314978325,1708711851752,-500.0,0.00028219,2]
[314978326,1708711851763,-500.0,0.00028219,2]
[314978327,1708711851772,-396.40384658,0.00028219,2]
[314978328,1708711851784,-250.43078722,0.00028219,2]
[314978329,1708711851794,-500.0,0.00028219,2]
[314978330,1708711851804,-500.0,0.00028219,2]
[314978331,1708711851816,-500.0,0.00028219,2]
[314978332,1708711851826,-500.0,0.00028219,2]
[314978333,1708711851836,-635.17,0.00028219,2]
[314978334,1708711851846,-500.0,0.00028219,2]
[314978335,1708711851855,-500.0,0.00028219,2]
[314978336,1708711851865,-500.0,0.00028219,2]
[314978337,1708711851875,-500.0,0.00028219,2]
[314978338,1708711851885,-500.0,0.00028219,2]
[314978339,1708711851895,-573.0,0.00028219,2]
[314978340,1708711851906,-500.0,0.00028219,2]
[314978341,1708711851915,-500.0,0.00028219,2]
[314978342,1708711851926,-701.77,0.00028219,2]
[314978343,1708711851935,-500.0,0.00028219,2]
[314978344,1708711851945,-500.0,0.00028219,2]
[314978345,1708711851955,-500.0,0.00028219,2]
[314978346,1708711851966,-572.43,0.00028219,2]
[314978347,1708711851977,-281.73391836,0.00028219,2]
[314978348,1708711851987,-500.0,0.00028219,2]
[314978349,1708711851997,-500.0,0.00028219,2]
[314978350,1708711852008,-403.18,0.00028246,2]
[314978351,1708711852018,-157.0837495,0.00028248,2]
[314978352,1708711852028,-550.9652061,0.00028256,2]
[314978353,1708711852038,-168.45313711,0.00028292,2]
[314978354,1708711852048,-484.401,0.00028301,2]
[314978355,1708711852058,-1039.0,0.00028301,2]
[314978356,1708711852068,-534.91133894,0.00028303,2]
[314978357,1708711852078,-155.14487319,0.00028315,2]
[314978358,1708711852088,-374.84,0.0002832,2]
[314978359,1708711852098,-155.59752133,0.00028329,2]
[314978360,1708711852108,-500.0,0.0002833,2]
[314978361,1708711852118,-500.0,0.0002833,2]
[314978362,1708711852127,-500.0,0.0002833,2]
[314978363,1708711852138,-500.0,0.0002833,2]
[314978364,1708711852148,-500.0,0.0002833,2]
[314978365,1708711852158,-500.0,0.0002833,2]
[314978366,1708711852168,-500.0,0.0002833,2]
[314978367,1708711852177,-500.0,0.0002833,2]
[314978368,1708711852187,-500.0,0.0002833,2]
[314978369,1708711852197,-500.0,0.0002833,2]
[314978370,1708711852206,-227.58,0.0002833,2]
[314978371,1708711852216,-500.0,0.0002833,2]
[314978372,1708711852226,-165.34347404,0.00028343,2]
[314978373,1708711852236,-500.0,0.00028356,2]
[314978374,1708711852247,-560.38,0.00028356,2]
[314978375,1708711852257,-500.0,0.00028356,2]
[314978376,1708711852267,-500.0,0.00028356,2]
[314978377,1708711852277,-1135.55235293,0.00028356,2]
[314978378,1708711852287,-500.0,0.00028356,2]
[314978379,1708711852297,-500.0,0.00028356,2]
[314978380,1708711852306,-500.0,0.00028356,2]
[314978381,1708711852315,-635.17,0.00028356,2]
[314978382,1708711852325,-500.0,0.00028356,2]
[314978383,1708711852335,-500.0,0.00028356,2]
[314978384,1708711852345,-500.0,0.00028356,2]
[314978385,1708711852354,-500.0,0.00028356,2]
[314978386,1708711852364,-500.0,0.00028356,2]
[314978387,1708711852373,-573.0,0.00028356,2]
[314978388,1708711852383,-500.0,0.00028356,2]
[314978389,1708711852392,-500.0,0.00028356,2]
[314978390,1708711852402,-701.77,0.00028356,2]
[314978391,1708711852412,-500.0,0.00028356,2]
[314978392,1708711852421,-500.0,0.00028356,2]
[314978393,1708711852431,-500.0,0.00028356,2]
[314978394,1708711852441,-572.43,0.00028356,2]
[314978395,1708711852450,-337.01506413,0.00028356,2]
[314978396,1708711852460,-500.0,0.00028356,2]
[314978397,1708711852469,-1004.6824,0.00028367,2]
[314978398,1708711852479,-154.98329938,0.0002838,2]
[314978399,1708711852488,-403.18,0.00028394,2]
[314978400,1708711852499,-211.0,0.00028403,2]
[314978401,1708711852509,-166.66666668,0.00028412,2]
[314978402,1708711852519,-153.31768893,0.00028445,2]
[314978403,1708711852529,-153.74027557,0.00028445,2]
[314978404,1708711852538,-500.0,0.00028467,2]
[314978405,1708711852548,-200.38,0.00028467,2]
[314978406,1708711852557,-292.16374957,0.00028467,2]
[314978407,1708711852567,-500.0,0.00028467,2]
[314978408,1708711852577,-500.0,0.00028467,2]
[314978409,1708711852587,-500.0,0.00028467,2]
[314978410,1708711852597,-585.59,0.00028467,2]
[314978411,1708711852607,-500.0,0.00028467,2]
[314978412,1708711852617,-500.0,0.00028467,2]
[314978413,1708711852627,-1135.55235293,0.00028472,2]
[314978414,1708711852637,-1027.1629468,0.00028486,2]
[314978415,1708711852647,-500.0,0.00028493,2]
[314978416,1708711852657,-500.0,0.00028493,2]
[314978417,1708711852667,-500.0,0.00028493,2]
[314978418,1708711852677,-500.0,0.00028493,2]
[314978419,1708711852687,-347.56,0.00028493,2]
[314978420,1708711852697,-500.0,0.00028493,2]
[314978421,1708711852707,-635.17,0.00028493,2]
[314978422,1708711852717,-500.0,0.00028493,2]
[314978423,1708711852727,-500.0,0.00028493,2]
[314978424,1708711852739,-500.0,0.00028493,2]
[314978425,1708711852751,-500.0,0.00028493,2]
[314978426,1708711852761,-500.0,0.00028493,2]
[314978427,1708711852771,-573.0,0.00028493,2]
[314978428,1708711852781,-295.50220637,0.00028493,2]
[314978429,1708711852790,-500.0,0.00028493,2]
[314978430,1708711852801,-701.77,0.00028493,2]
[314978431,1708711852812,-500.0,0.00028493,2]
[314978432,1708711852822,-500.0,0.00028493,2]
[314978433,1708711852832,-500.0,0.00028493,2]
[314978434,1708711852842,-572.43,0.00028493,2]
[314978435,1708711852852,-500.0,0.00028493,2]
[314978436,1708711852863,-260.25,0.000285,2]
[314978437,1708711852873,-154.07502588,0.00028501,2]
[314978438,1708711852883,-151.49591866,0.00028505,2]
[314978439,1708711852893,-161.74,0.00028507,2]
[314978440,1708711852902,-170.01694919,0.00028528,2]
[314978441,1708711852912,-177.74,0.00028538,2]
[314978442,1708711852922,-403.18,0.00028542,2]
[314978443,1708711852931,-511.44,0.0002856,2]
[314978444,1708711852941,-274.64655288,0.00028602,2]
[314978445,1708711852951,-155.4789899,0.00028603,2]
[314978446,1708711852960,-500.0,0.00028604,2]
[314978447,1708711852971,-336.1,0.00028604,2]
[314978448,1708711852981,-500.0,0.00028604,2]
[314978449,1708711852990,-500.0,0.00028604,2]
[314978450,1708711853000,-500.0,0.00028604,2]
[314978451,1708711853011,-475.0985226,0.00028604,2]
[314978452,1708711853021,-500.0,0.0002863,2]
[314978453,1708711853030,-500.0,0.0002863,2]
[314978454,1708711853040,-500.0,0.0002863,2]
[314978455,1708711853050,-500.0,0.0002863,2]
[314978456,1708711853060,-500.0,0.0002863,2]
[314978457,1708711853070,-635.17,0.0002863,2]
[314978458,1708711853080,-500.0,0.0002863,2]
[314978459,1708711853090,-500.0,0.0002863,2]
[314978460,1708711853100,-500.0,0.0002863,2]
[314978461,1708711853340,-580.43860072,0.0002863,2]
[314978462,1708711853359,-500.0,0.0002863,2]
[314978463,1708711853369,-573.0,0.0002863,2]
[314978464,1708711853378,-500.0,0.0002863,2]
[314978465,1708711853388,-701.77,0.0002863,2]
[314978466,1708711853397,-500.0,0.0002863,2]
[314978467,1708711853407,-500.0,0.0002863,2]
[314978468,1708711853417,-500.0,0.0002863,2]
[314978469,1708711853426,-572.43,0.0002863,2]
[314978470,1708711853435,-500.0,0.0002863,2]
[314978471,1708711853445,-1027.1629468,0.00028641,2]
[314978472,1708711853454,-159.87929936,0.00028647,2]
[314978473,1708711853463,-1500.0,0.00028654,2]
[314978474,1708711853472,-159.51672723,0.00028665,2]
[314978475,1708711853481,-151.49591866,0.00028669,2]
[314978476,1708711853490,-152.0,0.00028689,3]
[314978477,1708711853500,-403.18,0.0002869,2]
[314978478,1708711853509,-1000.0,0.00028691,2]
[314978479,1708711853519,-1000.0,0.00028692,2]
[314978480,1708711853529,-1080.11923028,0.000287,2]
[314978481,1708711853538,-534.91133894,0.00028729,2]
[314978482,1708711853547,-150.0,0.00028734,2]
[314978483,1708711853557,-155.85963337,0.00028734,2]
[314978484,1708711853567,-500.0,0.00028741,2]
[314978485,1708711853577,-500.0,0.00028741,2]
[314978486,1708711853587,-6429.78037174,0.00028743,2]
[314978487,1708711853597,-1500.0,0.00028746,2]
[314978488,1708711853607,-1000.0,0.00028764,7]
[314978489,1708711853616,-1900.05757442,0.00028764,7]
[314978490,1708711853626,-699.09267851,0.00028764,6]
[314978491,1708711853635,-176.61611622,0.00028764,6]
[314978492,1708711853645,-500.0,0.00028764,6]
[314978493,1708711853655,-250.0,0.00028764,7]
[314978494,1708711853665,-500.0,0.00028767,2]
[314978495,1708711853675,-500.0,0.00028767,2]
[314978496,1708711853685,-500.0,0.00028767,2]
[314978497,1708711853695,-500.0,0.00028767,2]
[314978498,1708711853706,-604.11440789,0.00028767,2]
[314978499,1708711853715,-635.17,0.00028767,2]
[314978500,1708711853730,-500.0,0.00028767,2]
[314978501,1708711853740,-500.0,0.00028767,2]
[314978502,1708711853751,-542.39,0.00028767,2]
[314978503,1708711853760,-500.0,0.00028767,2]
[314978504,1708711853770,-573.0,0.00028767,2]
[314978505,1708711853780,-500.0,0.00028767,2]
[314978506,1708711853790,-701.77,0.00028767,2]
[314978507,1708711853799,-235.88021992,0.00028767,2]
[314978508,1708711853850,-264.11978008,0.00028767,2]
[314978509,1708711853860,-500.0,0.00028767,2]
[314978510,1708711853870,-500.0,0.00028767,2]
[314978511,1708711853880,-572.43,0.00028767,2]
[314978512,1708711853890,-500.0,0.00028767,2]
[314978513,1708711853900,-1080.11923028,0.00028781,2]
[314978514,1708711853909,-1087.0198863,0.00028785,4]
[314978515,1708711853918,-500.0,0.00028789,2]
[314978516,1708711853928,-228.398364,0.0002879,4]
[314978517,1708711853937,-170.01694919,0.0002879,2]
[314978518,1708711853946,-479.57651866,0.00028792,4]
[314978519,1708711853956,-14299.69083446,0.00028795,4]
[314978520,1708711853965,-1087.0198863,0.00028797,4]
[314978521,1708711853974,-200.0,0.000288,2]
[314978522,1708711853983,-159.87929936,0.00028802,2]
[314978523,1708711853994,-69329.85262631,0.00028808,4]
[314978524,1708711854005,-4000.0,0.0002881,2]
[314978525,1708711854015,-228.398364,0.00028815,4]
[314978526,1708711854025,-228.398364,0.00028821,4]
[314978527,1708711854034,-178.05,0.00028822,2]
[314978528,1708711854044,-479.57651866,0.00028824,4]
[314978529,1708711854055,-455.25039953,0.00028832,2]
[314978530,1708711854064,-128240.96960605,0.00028838,2]
[314978531,1708711854088,-500.0,0.00027397,2]
[314978532,1708711854097,-2378.3425458,0.00028838,2]
[314978533,1708711854119,-545.27389802,0.00028838,2]
[314978534,1708711854128,-403.18,0.00028838,2]
[314978535,1708711854137,-7009.16719558,0.0002884,2]
[314978536,1708711854152,-500.0,0.00027397,2]
[314978537,1708711854162,-1152.35817395,0.0002884,2]
[314978538,1708711854174,-2507.35460291,0.0002884,2]
[314978539,1708711854185,-969.10408305,0.0002884,2]
[314978540,1708711854196,-1003.6585182,0.0002884,2]
[314978541,1708711854383,-310.26274352,0.00027397,10]
[314978542,1708711854395,-115.25725648,0.00027397,10]
[314978543,1708711854405,-500.0,0.00027534,2]
[314978544,1708711854414,-626.11716295,0.00027534,2]
[314978545,1708711854424,-62.80732093,0.00027671,2]
[314978546,1708711854481,-437.19267907,0.00027671,2]
[314978547,1708711854491,-500.0,0.00027808,2]
[314978548,1708711854501,-813.86006768,0.0002884,2]
[314978549,1708711854512,-2999.25077719,0.0002884,2]
[314978550,1708711854524,-2180.57248357,0.0002884,2]
[314978551,1708711854536,-5141.49511266,0.0002884,2]
[314978552,1708711864619,250.3071,0.00023022,2]
[314978558,1708712108484,537.0,0.00027,30]
[314978559,1708712206477,-381.87,0.00025252,2]
[314978560,1708712206503,-1618.13,0.00025521,2]
[314978561,1708712207469,-207.72,0.00025521,2]
[314978562,1708712207496,-1792.28,0.00025577,2]
[314978563,1708712207892,-48.32,0.00025577,2]
[314978564,1708712207921,-1844.45,0.00025644,2]
[314978565,1708712207949,-107.23,0.00025726,2]
[314978566,1708712208289,-1724.7,0.00025726,2]
[314978567,1708712208314,-275.3,0.00025826,2]
[314978568,1708712208618,-1536.16,0.00025826,2]
[314978569,1708712210156,200.0,0.00025944,2]
[314978570,1708712215252,263.84,0.00025474,2]
[314978571,1708712215271,1530.15,0.00025474,2]
[314978572,1708712235270,469.85,0.00025948,2]
[314978573,1708712235292,1311.18,0.00025948,2]
[314978574,1708712246971,201.0,0.00025301,2]
[314978575,1708712269283,200.0,0.00025934,2]
[314978576,1708712279101,287.82,0.00025948,2]
[314978577,1708712279121,1486.93,0.00025948,2]
[314978578,1708712291407,513.07,0.00025544,2]
[314978579,1708712291427,1938.0085,0.00025544,2]
[314978580,1708712307261,61.9915,0.00025818,2]
[314978581,1708712307281,2000.0,0.00025818,2]
[314978582,1708712307300,2000.0,0.00025818,2]
[314978583,1708712307320,2000.0,0.00025818,2]
[314978584,1708712307340,2000.0,0.00025818,2]
[314978585,1708712307359,1.394057,0.00025818,2]
[314978586,1708712358449,162.43098924,0.00025864,2]
[314978587,1708712369476,1836.17495376,0.00025866,2]
[314978588,1708712369496,2000.0,0.00025866,2]
[314978589,1708712369515,2000.0,0.00025866,2]
[314978590,1708712369535,2000.0,0.00025866,2]
[314978591,1708712369558,2000.0,0.00025866,2]
[314978592,1708712369577,2000.0,0.00025866,2]
[314978593,1708712369598,2000.0,0.00025866,2]
[314978594,1708712369617,2000.0,0.00025866,2]
[314978595,1708712373427,203.45,0.00020685,2]
[314978596,1708712587469,-3033.26971757,0.00023927,2]
[314978597,1708712587491,-451.48,0.00023928,2]
[314978598,1708712790763,-2000.0,0.00025392,2]
[314978599,1708712790784,-1042.58,0.0002552,2]
[314978600,1708712790805,-464.84,0.00025637,2]
[314978601,1708712790825,-268.73,0.00025669,2]
[314978602,1708712790847,-323.54,0.00025715,2]
[314978603,1708712790868,-537.79,0.00025836,2]
[314978604,1708712790889,-323.54,0.00025851,2]
[314978605,1708712790909,-150.0,0.00025865,2]
[314978606,1708712790929,-8063.82504624,0.00025866,2]
[314978607,1708712790949,-2000.0,0.00025866,2]
[314978608,1708712790968,-665.49294124,0.000259,2]
[314978609,1708712790989,-1796.33,0.00025948,2]
[314978610,1708712791010,-680.76,0.00025956,2]
[314978611,1708712791033,-1817.07,0.00025956,2]
[314978612,1708712791052,-1824.36,0.00025964,2]
[314978613,1708712791072,-323.54,0.00025986,2]
[314978614,1708712791093,-2572.22121107,0.00026,2]
[314978615,1708712810807,-250.0,0.00026078,2]
[314978616,1708712810828,-150.0,0.00026079,2]
[314978617,1708712810849,-1831.32,0.00026093,2]
[314978618,1708712810870,-323.54,0.00026121,2]
[314978619,1708712810902,-451.48,0.00026192,2]
[314978620,1708712810924,-28200.53398388,0.00026197,2]
[314978621,1708712824563,-5000.0,0.00026197,2]
[314978622,1708712847943,-2000.0,0.00025715,2]
[314978629,1708713031798,-281.58980738,0.00023716,2]
[314978633,1708713032054,-165.07019262,0.00023716,2]
[314978634,1708713032063,-217.0,0.00025301,2]
[314978635,1708713032073,-1000.0,0.00025587,2]
[314978636,1708713032084,-702.49,0.00025637,2]
[314978637,1708713032093,-161.3,0.0002565,2]
[314978638,1708713032104,-448.15,0.00025679,2]
[314978639,1708713032115,-150.0,0.00025714,2]
[314978640,1708713032125,-21900.0,0.00025715,2]
[314978641,1708713032134,-268.73,0.00025739,2]
[314978642,1708713032144,-776.23820374,0.00025969,2]
[314978643,1708713032154,-446.66,0.0002598,2]
[314978644,1708713032163,-30465.28097127,0.00026197,2]
[314978649,1708713037499,-40407.18504485,0.00026197,2]
[314978650,1708713037510,-2809.0,0.000262,2]
[314978651,1708713037519,-3000.0,0.00026225,2]
[314978652,1708713037530,-177.74,0.00026252,2]
[314978653,1708713037540,-323.54,0.00026257,2]
[314978654,1708713037549,-1835.0,0.00026268,2]
[314978655,1708713037559,-161.3,0.00026291,2]
[314978656,1708713037569,-300.0,0.00026295,2]
[314978657,1708713037579,-236.41361177,0.00026299,2]
[314978658,1708713037588,-13914.0,0.000263,2]
[314978659,1708713037597,-1510.17813183,0.00026383,2]
[314978660,1708713037606,-323.54,0.00026392,2]
[314978661,1708713037615,-3097.8913,0.00026459,2]
[314978662,1708713037624,-1804.55,0.00026483,2]
[314978663,1708713037634,-162.43098923,0.00026493,2]
[314978664,1708713037643,-323.54,0.00026527,2]
[314978665,1708713037652,-204.0,0.00026547,2]
[314978666,1708713037662,-363.55,0.0002656,2]
[314978667,1708713037672,-158.01,0.00026585,2]
[314978668,1708713037681,-499.99,0.00026585,2]
[314978669,1708713037690,-11633.4221,0.00026597,2]
[314978670,1708713037699,-1510.17813183,0.00026597,2]
[314978671,1708713037708,-737.91888808,0.000266,2]
[314978672,1708713037717,-323.54,0.00026663,2]
[314978673,1708713037728,-217.0,0.00026671,2]
[314978675,1708713037738,-1793.42,0.00026697,2]
[314978676,1708713037750,-1797.38,0.00026697,2]
[314978677,1708713037759,-1783.01,0.00026697,2]
[314978678,1708713037769,-1806.19,0.00026697,2]
[314978679,1708713037779,-1000.0,0.00026698,2]
[314978680,1708713037788,-500.0,0.00026698,2]
[314978681,1708713037797,-484.5362,0.00026698,2]
[314978682,1708713037807,-323.54,0.00026798,2]
[314978683,1708713037816,-5143.82429741,0.00026798,2]
[314978684,1708713037825,-6093.00846901,0.00026798,2]
[314978686,1708713037835,-177.74,0.000268,2]
[314978688,1708713037844,-1812.11,0.00026883,2]
[314978690,1708713037853,-2500.0,0.00026899,2]
[314978692,1708713037863,-516.5646347,0.000269,2]
[314978694,1708713037872,-501.00247017,0.000269,3]
[314978696,1708713037882,-161.3,0.00026933,2]
[314978698,1708713037892,-323.54,0.00026933,2]
[314978700,1708713037901,-80184.69370785,0.00027,3]
[314978702,1708713037911,-10000.0,0.00027,2]
[314978704,1708713037920,-1837.98,0.00027033,2]
[314978705,1708713037929,-323.54,0.00027069,2]
[314978706,1708713037938,-162.43098923,0.00027121,2]
[314978707,1708713037948,-583.89763706,0.00027153,2]
[314978708,1708713037958,-1500.0,0.00027154,2]
[314978709,1708713037968,-184.67087336,0.00027173,2]
[314978710,1708713037977,-3179.35470839,0.00027196,2]
[314978711,1708713037987,-323.54,0.00027204,2]
[314978712,1708713037997,-192.46705866,0.00027241,2]
[314978713,1708713038008,-472977.45494211,0.00027251,2]
[314978714,1708713038022,-262127.94904129,0.00027251,2]
[314978715,1708713038040,-1214.92060243,0.00027251,2]
[314978718,1708713040022,-8763.3438695,0.00027251,2]
[314978719,1708713040084,-1044.22160026,0.00027251,2]
[314978720,1708713040197,-402.926715,0.00027251,2]
[314978721,1708713040924,-270.40879357,0.00027251,2]
[314978722,1708713040936,-1875.38813966,0.00027251,2]
[314978723,1708713040947,-781.03889459,0.00027251,2]
[314978731,1708713043185,-669.42198047,0.00027251,2]
[314978732,1708713043197,-5800.12561992,0.00027251,2]
[314978733,1708713043208,-5430.83851877,0.00027251,2]
[314978734,1708713043220,-7378.69117563,0.00027251,2]
[314978735,1708713043233,-477.79895408,0.00027251,2]
[314978736,1708713043299,-475.67259041,0.00027251,2]
[314978737,1708713043413,-177281.83340884,0.00027251,2]
[314978738,1708713043425,-545.44465,0.00027251,2]
[314978739,1708713043474,-3004.25859715,0.00027251,2]
[314978740,1708713045481,-15065.0,0.000263,2]
[314978741,1708713045493,-269.36692393,0.0002725,2]
[314978742,1708713045502,-15279.72987607,0.00027251,2]
[314978743,1708713045894,-97732.14410541,0.00027251,2]
[314978744,1708713045904,-155.4789899,0.00027252,2]
[314978745,1708713045914,-274.64655288,0.00027253,2]
[314978746,1708713045925,-5000.0,0.00027272,2]
[314978747,1708713045934,-11176.0988,0.00027296,2]
[314978748,1708713045944,-1004.6824,0.00027296,2]
[314978749,1708713045954,-211.0,0.00027296,2]
[314978750,1708713045964,-1500.0,0.00027301,2]
[314978751,1708713045973,-448.15,0.00027323,2]
[314978752,1708713045984,-323.54,0.00027339,2]
[314978753,1708713045993,-177.74,0.00027348,2]
[314978754,1708713046003,-188.22402878,0.00027396,2]
[314978755,1708713046012,-1832.7,0.00027396,2]
[314978756,1708713046022,-505.12344493,0.00027397,2]
[314978757,1708713046031,-264.24950795,0.00027397,2]
[314978758,1708713046042,-246.37425149,0.00027397,2]